Cogmind - Beta 13 @@@ ROGUE MODE // 2024.05.11 @ 23:07:36 Player: Lunace Result: Destroyed by EX-DEC with AWS/EX-DEC Performance ------------- Evolutions (1) 500 Regions Visited (5) 1000 Robots Destroyed (32) 160 Value Destroyed (747) 747 Prototype IDs (3) 60 Alien Tech Used (0) 0 Bonus (-44) -44 TOTAL SCORE: 2423 Bonus ------- Friendly Fire -44 Cogmind --------- Core Integrity 0/400 Matter 300/300 Energy 61/100 System Corruption 1% Temperature Cool (0) Movement Hovering (42) Location -9/Exiles Parts ------- > --- POWER (1) -------- (None) > --- PROPULSION (3) --- Aerolev Unit Aerolev Unit Aerolev Unit > --- UTILITY (3) ------ Medium Storage Unit Structural Scanner Signal Interpreter > --- WEAPON (2) ------- Mace > --- INVENTORY (10) --- Hover Unit High-capacity Matter Pod (200) High-capacity Matter Pod (200) High-capacity Matter Pod (190) Sensor Array Peak State ------------ > --- POWER ------------ Ion Engine > --- PROPULSION ------- VSS Leg VSS Leg Aerolev Unit > --- UTILITY ---------- Small Storage Unit Signal Interpreter Hardened Medium Armor Plating > --- WEAPON ----------- Assault Rifle Light Assault Rifle > --- INVENTORY -------- Ion Engine VSS Leg VSS Leg Improved Heat Sink High-capacity Matter Pod Sensor Array Improved Terrain Scanner Mace [Rating: 19] Favorites ----------- Power Ion Engine Engine Ion Engine Propulsion Light Treads Treads Light Treads Leg VSS Leg Hover Unit Aerolev Unit Utility Small Storage Unit Device Improved Terrain Scanner Storage Small Storage Unit Processor Signal Interpreter Protection Hardened Medium Armor Plating Weapon Assault Rifle Ballistic Gun Assault Rifle Impact Weapon Mace Special Melee Weapon Datajack Build | -11 -10 -10 -9 -9 -9 ------- Run | Yrd Mat Min Mat Min Exi Slots Evolved 2 | . . . 2 . . Power . | . . . . . . Propulsion 1 | . . . 1 . . Utility 1 | . . . 1 . . Weapon . | . . . . . . Parts Attached 36 | 7 . 2 20 6 1 Power 6 | 1 . 2 3 . . Engine 6 | 1 . 2 3 . . Core . | . . . . . . Reactor . | . . . . . . Propulsion 15 | 2 . . 9 4 . Treads 6 | 2 . . 4 . . Leg 5 | . . . 4 1 . Wheel . | . . . . . . Hover 4 | . . . 1 3 . Flight . | . . . . . . Utility 8 | 2 . . 4 1 1 Device 4 | 1 . . 2 1 . Storage 2 | 1 . . . . 1 Processor 1 | . . . 1 . . Hackware . | . . . . . . Protection 1 | . . . 1 . . Artifact . | . . . . . . Weapon 7 | 2 . . 4 1 . Energy Gun . | . . . . . . Energy Cannon . | . . . . . . Ballistic Gun 5 | 2 . . 3 . . Ballistic Cannon . | . . . . . . Launcher . | . . . . . . Special Weapon . | . . . . . . Impact Weapon 1 | . . . . 1 . Slashing Weapon . | . . . . . . Piercing Weapon . | . . . . . . Special Melee Weapon 1 | . . . 1 . . Unidentified Prototypes 1 | . . . 1 . . Parts Lost 7 | . . . . 7 . Power 1 | . . . . 1 . Propulsion 4 | . . . . 4 . Utility 1 | . . . . 1 . Weapon 1 | . . . . 1 . Highest Loss Streak 4 | . . . . 4 . To Critical Strikes . | . . . . . . Average Slot Usage (%) 96 | . 100 100 99 79 77 Engine 11 | . 14 14 11 8 . Treads 25 | . 28 28 30 . . Leg 3 | . . . 2 24 . Hover 1 | . . . . 3 33 Device 13 | . 14 14 16 . 11 Storage 12 | . 14 14 11 11 11 Processor 3 | . . . 4 11 11 Ballistic Gun 21 | . 28 28 21 2 . Impact Weapon 1 | . . . . 11 11 Naked Turns . | . . . . . . Heaviest Build 22 | 14 14 14 21 22 13 Greatest Support 66 | 40 40 40 66 36 24 Greatest Overweight (x) 2 | 2 . . . . . Average Overweight (x) . | . . . . . . Largest Inventory Capacity 10 | 8 8 8 8 8 10 Average Capacity 8 | 7 8 8 8 8 8 Most Carried 8 | 2 6 7 8 8 5 Average Carried 6 | 1 4 6 7 7 3 Final Capacity 10 | 8 8 8 8 8 10 Final Carried 8 | 2 6 7 8 3 5 Class Distribution -------------------- 91% | Mutant 8% | Scavenger-Mutant Dominant Class ---------------- Mutant | -10/Materials Mutant | -10/Mines Mutant | -9/Materials Mutant | -9/Mines Mutant | -9/Exiles Resources | -11 -10 -10 -9 -9 -9 ----------- Run | Yrd Mat Min Mat Min Exi Matter Collected 1103 | 283 28 347 290 135 20 Remotely . | . . . . . . Salvage Created 1051 | 125 42 237 291 311 45 Parts 61 | 6 5 14 24 10 2 Haulers Intercepted . | . . . . . . Recyclers Shooed 5 | 2 1 . 2 . . Parts Field Recycled . | . . . . . . Retrieved Matter . | . . . . . . Parts Self-Destructed . | . . . . . . Prevented . | . . . . . . Kills | -11 -10 -10 -9 -9 -9 ------- Run | Yrd Mat Min Mat Min Exi Combat Hostiles Destroyed 24 | . 3 5 8 8 . Melee 3 | . . . . 3 . Guns 16 | . 3 5 8 . . Classes Destroyed 7 | 2 1 1 2 1 . Worker 1 | . . . . 1 . Tunneler 2 | 2 . . . . . Recycler 2 | 1 . . . 1 . Operator 1 | . . . 1 . . Watcher 2 | . . . 2 . . Swarmer 9 | . 3 . 3 3 . Grunt 15 | . . 5 5 5 . Best Kill Streak 3 | 2 3 2 3 3 . Combat Bots Only 3 | . 3 2 3 2 . Max Kills in Single Turn 1 | 1 1 1 1 1 . Gunslinging . | . . . . . . Exploded . | . . . . . . Melee 1 | . . . . 1 . Uniques/NPCs Destroyed . | . . . . . . Combat | -11 -10 -10 -9 -9 -9 -------- Run | Yrd Mat Min Mat Min Exi Hostile Shots Fired 240 | . 12 32 38 151 7 Missed 57 | . 3 7 8 37 2 Damage Taken 2073 | . 69 354 299 1269 82 Core 505 | . 24 69 26 332 54 Absorbed by Shields . | . . . . . . Regen/Repaired (Parts) 87 | . . . 87 . . Core Remaining (%) 81 | 100 . 62 . . . Volleys Fired 87 | 13 8 23 43 . . Largest 2 | 2 2 2 2 . . Hottest 40 | 40 40 40 40 . . Shots Fired 174 | 26 16 46 86 . . Gun 174 | 26 16 46 86 . . Cannon . | . . . . . . Launcher . | . . . . . . Special . | . . . . . . Kinetic 174 | 26 16 46 86 . . Thermal . | . . . . . . Explosive . | . . . . . . Electromagnetic . | . . . . . . Robot Hit Streak 12 | 5 2 11 12 . . Robot Miss Streak 4 | 3 2 4 4 . . Penetration Max . | . . . . . . Secondary Targets 1 | . . 1 . . . Max Gunslinging Chain 1 | . . 1 . . . Shots Hit Robots 146 | 15 8 30 54 38 1 Core Hits 47 | 5 6 12 22 2 . Critical Kills . | . . . . . . Critical Parts Destroyed 4 | . . . 1 3 . Critical Strikes 4 | . . . 1 3 . Destroy 1 | . . . 1 . . Smash 3 | . . . . 3 . Melee Attacks 55 | . . . . 54 1 Impact 55 | . . . . 54 1 Slashing . | . . . . . . Piercing . | . . . . . . Sneak Attacks 2 | . . . . 2 . Combat Hostiles . | . . . . . . Follow-up Attacks . | . . . . . . Damage Inflicted 2408 | 155 87 317 588 1224 37 Guns 1147 | 155 87 317 588 . . Cannons . | . . . . . . Explosions . | . . . . . . Melee 1261 | . . . . 1224 37 Ramming . | . . . . . . Kinetic 1147 | 155 87 317 588 . . Thermal . | . . . . . . Explosive . | . . . . . . Electromagnetic . | . . . . . . Impact 1261 | . . . . 1224 37 Slashing . | . . . . . . Piercing . | . . . . . . Highest Corruption 1 | . . . . . 1 Average Corruption 1 | . . . . . 1 Corruption Purged . | . . . . . . Corruption Blocked . | . . . . . . Overload Shots . | . . . . . . Overflow Damage 268 | . . . . 251 17 Projectiles . | . . . . . . Explosions . | . . . . . . Melee 268 | . . . . 251 17 Knockbacks 1 | . . . . 1 . Impact 1 | . . . . 1 . Kinetic . | . . . . . . Secondary . | . . . . . . Self-Inflicted Damage . | . . . . . . Shots . | . . . . . . Rammed . | . . . . . . Targets Rammed . | . . . . . . Kicked . | . . . . . . Crushed . | . . . . . . Highest Temperature 37 | . . 37 4 5 . Average Temperature 9 | . . 11 3 3 . Received Heat Transfer 828 | . . 213 132 483 . Siege Activations . | . . . . . . Robots Corrupted . | . . . . . . Combat Hostiles . | . . . . . . Parts Fried 6 | . . . . 4 2 Impact Corruptions 15 | . . . . 14 1 Robots Melted . | . . . . . . Combat Hostiles . | . . . . . . Parts Melted 1 | . . 1 . . . Heat Transferred . | . . . . . . Parts Sabotaged . | . . . . . . Parts Stolen . | . . . . . . Parts Stripped . | . . . . . . Power Chain Reactions . | . . . . . . Alert | -11 -10 -10 -9 -9 -9 ------- Run | Yrd Mat Min Mat Min Exi Peak Influence 301 | 15 111 173 159 301 . Initial 61 | . 9 43 . 61 . Average 83 | 4 57 66 95 173 . Maximum Alert Level 1 | . . . . 1 . Low Security (%) 95 | 100 100 100 100 56 . Level 1 4 | . . . . 43 . Level 2 . | . . . . . . Level 3 . | . . . . . . Level 4 . | . . . . . . Level 5 . | . . . . . . High Security . | . . . . . . Max Security . | . . . . . . Squads Dispatched 3 | . 1 . 2 . . Investigation 1 | . 1 . . . . Extermination . | . . . . . . Reinforcement 2 | . . . 2 . . Assault . | . . . . . . Garrison . | . . . . . . Intercept . | . . . . . . Searches Triggered . | . . . . . . Construction Impeded . | . . . . . . Haulers Reinforced . | . . . . . . Active Scanning Responses . | . . . . . . Cargo Convoy Interrupts . | . . . . . . Stealth | -11 -10 -10 -9 -9 -9 --------- Run | Yrd Mat Min Mat Min Exi Distress Signals . | . . . . . . Communications Jammed . | . . . . . . Distress Signals . | . . . . . . Times Spotted 51 | . 4 6 18 18 5 Peak Tracking Total 11 | . 3 2 3 7 11 Tactical Retreats 8 | . . . 3 4 1 Traps | -11 -10 -10 -9 -9 -9 ------- Run | Yrd Mat Min Mat Min Exi Traps Triggered 1 | . 1 . . . . Indirectly . | . . . . . . Trap Hack Attempts 2 | . . . 2 . . Triggered . | . . . . . . Disarmed 1 | . . . 1 . . Reprogrammed . | . . . . . . Reused . | . . . . . . Traps Extracted . | . . . . . . Installed 2 | . . 2 . . . Triggered . | . . . . . . Machines | -11 -10 -10 -9 -9 -9 ---------- Run | Yrd Mat Min Mat Min Exi Machines Disabled 2 | . 1 . . 1 . Max in Single Turn 1 | . 1 . . 1 . Machines Repaired . | . . . . . . Machines Dismantled . | . . . . . . Machines Sabotaged . | . . . . . . Overloaded Fab Kills . | . . . . . . Hacking | -11 -10 -10 -9 -9 -9 --------- Run | Yrd Mat Min Mat Min Exi Machines Accessed 6 | . 5 . 1 . . Terminals 4 | . 4 . . . . Fabricators . | . . . . . . Repair Stations 1 | . . . 1 . . Recycling Units 1 | . 1 . . . . Scanalyzers . | . . . . . . Garrison Access . | . . . . . . Total Hacks 18 | . 16 . 2 . . Successful 11 | . 9 . 2 . . Failed 7 | . 7 . . . . Catastrophic 1 | . 1 . . . . Database Lockouts . | . . . . . . Manual 11 | . 11 . . . . Terminals 14 | . 14 . . . . Fabricators . | . . . . . . Repair Stations 2 | . . . 2 . . Recycling Units 2 | . 2 . . . . Scanalyzers . | . . . . . . Garrison Access . | . . . . . . Terminal Hacks 3 | . 3 . . . . Prototype ID Bank 1 | . 1 . . . . Branch Access Points 1 | . 1 . . . . Locate Traps 1 | . 1 . . . . Fabricator Hacks . | . . . . . . Repair Station Hacks 2 | . . . 2 . . Scan Component 1 | . . . 1 . . Repair 1 | . . . 1 . . Recycling Unit Hacks 1 | . 1 . . . . Retrieve Components 1 | . 1 . . . . Scanalyzer . | . . . . . . Garrison Access Hacks . | . . . . . . Unauthorized Hacks 5 | . 5 . . . . Terminals 5 | . 5 . . . . Botnet 4 | . 4 . . . . Operators 1 | . 1 . . . . Fabricators . | . . . . . . Repair Stations . | . . . . . . Recycling Units . | . . . . . . Scanalyzers . | . . . . . . Garrison Access . | . . . . . . Data Cores Recovered . | . . . . . . Used . | . . . . . . Hacking Detections 6 | . 5 . 1 . . Full Trace Events . | . . . . . . Feedback Events . | . . . . . . Feedback Blocked . | . . . . . . Robot Schematics Acquired . | . . . . . . Robots Built . | . . . . . . Authchips . | . . . . . . Time . | . . . . . . Total Robot Build Rating . | . . . . . . Part Schematics Acquired . | . . . . . . Parts Built . | . . . . . . Authchips . | . . . . . . Time . | . . . . . . Total Part Build Rating . | . . . . . . Parts Repaired 1 | . . . 1 . . Time 26 | . . . 26 . . Parts Recycled . | . . . . . . Recycled Matter . | . . . . . . Retrieved Matter . | . . . . . . Retrieved Components 2 | . 2 . . . . Parts Scanalyzed . | . . . . . . Part Schematics Acquired . | . . . . . . Parts Damaged . | . . . . . . Bothacking | -11 -10 -10 -9 -9 -9 ------------ Run | Yrd Mat Min Mat Min Exi Used RIF Installer . | . . . . . . Robots Hacked . | . . . . . . Non-combat . | . . . . . . Combat . | . . . . . . Robot Hacks Applied . | . . . . . . Relay Couplers Released . | . . . . . . Fabnet Peak Effective % . | . . . . . . Robots Rewired . | . . . . . . Allies Hacked . | . . . . . . Hacks Repelled . | . . . . . . Allies | -11 -10 -10 -9 -9 -9 -------- Run | Yrd Mat Min Mat Min Exi Total Allies . | . . . . . . Largest Group . | . . . . . . Highest-Rated Group . | . . . . . . Highest-Rated Ally . | . . . . . . Total Orders . | . . . . . . Ally Attacks . | . . . . . . Total Damage . | . . . . . . Kills . | . . . . . . Allies Corrupted . | . . . . . . Allies Melted . | . . . . . . Intel | -11 -10 -10 -9 -9 -9 ------- Run | Yrd Mat Min Mat Min Exi Robot Analysis Total . | . . . . . . Derelict Logs Recovered 2 | . . 2 . . . Drone Launches . | . . . . . . Drone Recoveries . | . . . . . . Exploration | -11 -10 -10 -9 -9 -9 ------------- Run | Yrd Mat Min Mat Min Exi Turns Passed 2171 | 137 350 656 736 238 54 Spaces Moved 1161 | 59 199 363 310 119 111 Core 10 | 10 . . . . . Treads 898 | 49 199 363 287 . . Legs 81 | . . . 23 58 . Wheels . | . . . . . . Hover 172 | . . . . 61 111 Flight . | . . . . . . Fastest Speed 42 | 50 160 160 90 42 42 Average Speed 137 | 148 160 160 154 65 42 Slowest Speed 160 | 160 160 160 160 90 42 Overloaded Moves . | . . . . . . Propulsion Burnouts . | . . . . . . Robots Hopped . | . . . . . . Cave-ins Triggered . | . . . . . . Exploration Rate (%) 34 | 5 42 72 28 21 37 Regions Visited 5 Branch Regions 3 Pre-discovered Areas 1 | . . 1 . . . Known Exits Taken 3 | . 1 . 1 1 . Unknown Exits Taken 2 | 1 . 1 . . . Scrap Searched 2 | . . 1 . 1 . Spaces Dug . | . . . . . . Terrain Destroyed . | . . . . . . Melee . | . . . . . . Projectile . | . . . . . . AOE . | . . . . . . Terrain Rammed . | . . . . . . Walls Destroyed . | . . . . . . Machines Disabled . | . . . . . . Actions | -11 -10 -10 -9 -9 -9 --------- Run | Yrd Mat Min Mat Min Exi Total 1487 | 82 216 397 492 184 116 Wait 105 | 2 6 5 88 4 . Move 1156 | 58 198 362 309 118 111 Hop . | . . . . . . Pick Up 20 | 2 4 1 10 1 2 Fast Attach 13 | 7 . . 6 . . Attach 9 | . . . 3 6 . Detach 2 | . . . 2 . . Swap 14 | . . 2 11 . 1 Drop 22 | . . 2 18 1 1 Fire 87 | 13 8 23 43 . . Melee 55 | . . . . 54 1 Ram . | . . . . . . Kick . | . . . . . . Crush . | . . . . . . Escape Stasis . | . . . . . . Rewire . | . . . . . . Trap 4 | . . 2 2 . . Miscellaneous . | . . . . . . Route ------- -11/Scrapyard -10/Materials -10/Mines (discovered 2 exits: *Mat x2) -9/Materials (discovered 2 exits: Mat / *Min) -9/Mines -9/Exiles History --------- Turn | Location | Event 17 | -11/Scrapyard | Discovered new exit (range 14) 138 | -11/Scrapyard | Entered Materials 302 | -10/Materials | Identified exit to Mines 305 | -10/Materials | Build established: Mutant 488 | -10/Materials | Entered Mines 489 | -10/Mines | Discovered new exit (range 16) 518 | -10/Mines | Met a Derelict bent on vengeance 552 | -10/Mines | Learned location of 1 exit from Materials 640 | -10/Mines | Learned location of Mines (-9) 920 | -10/Mines | Found a hidden stash of uninstalled traps 1075 | -10/Mines | Discovered new exit (range 7) 1144 | -10/Mines | Entered Materials 1144 | -9/Materials | Evolved 2 slots: Propulsion x1, Utility x1 1145 | -9/Materials | Identified exit to Materials 1409 | -9/Materials | Repaired Assault Rifle 1813 | -9/Materials | Discovered new exit (range 7) 1880 | -9/Materials | Identified exit to Mines 1880 | -9/Materials | Entered Mines 2065 | -9/Mines | Core integrity fell below 50% 2083 | -9/Mines | Core integrity fell below 20% 2094 | -9/Mines | Lost 4 parts (1p3n) 2117 | -9/Mines | Deemed a non-threat by the Exiles lab entrance 2117 | -9/Mines | Discovered new exit (range 5) 2118 | -9/Mines | Identified exit to Exiles 2118 | -9/Mines | Entered Exiles 2129 | -9/Exiles | Met 8R-AWN 2136 | -9/Exiles | Met EX-HEX 2163 | -9/Exiles | Met EX-DEC 2165 | -9/Exiles | Attacked by the Exiles 2172 | -9/Exiles | Destroyed by EX-DEC with AWS/EX-DEC Last Messages --------------- 02154_ Extracted 10 matter. 02154_ Acquired Hcp. Matter Pod. 02155_ Extracted 10 matter. 02156_ Acquired Hcp. Matter Pod. EX-DEC: Ah I see we have a visitor. One wrong move in here and I'll invert your atomic chain! 02164_ Sneak attack on A-02 Transporter. 02164_ Destroyed Transport Network Coupler. 02164_ A-02 Transporter system corrupted by crushing effect. 02165_ A-02 Transporter system terminally corrupted. 02165_ Ion Engine fried. 02165_ Lgt. Treads fried. 02165_ EXILES: Hostile robot within lab perimeter. Defensive protocols time, folks! 02167_ EX-DEC: "Let's see what this bad boy can do..." 02171_ Machine disabled. Map ----- +----------------------------------------------------+ | ?????????????????????????????????????????????????? | | ?????????????????????????????????????????????????? | | ?????????????????????????????????????????????????? | | ?????????????????????????????????????????????????? | | ???????????????????????????????????????????????? | | ?????????????????????????????????????????????? | | ?????????????????????????????? ?????????????? | | ?????????????????????????? ????????????? | | ???????????????????????? ???????????? | | ??????????????????????? ???????????? | | ?????????????????????"" ????????????? | | ????????????????????" ????????????? | | ????????????????????" "???????????#"" | | ????????????????????"" """????????????#" | | ???????????????????"" """#????????????#" | | ???????????????????"" ""????????????##" | | ??????????????????"" ########??####"" | | ??????????????????""" ##%= ####""" | | ???????????????????" ! """" | | ??????????????????#""t | | ??????????????????#"""" | | ???????????????????# % | | ???????????????????#" " "" | | ???????????????????#"""" ""## ##""" | | ???????????????????#"" ""#### ##### | | ???????????????????#" c@ """"##??# #???? | | ???????????????????#""" """#??## ####? | | ???????????????????## ""##??#! " #? | | ????????????????????#"" ""##???#" #? | | ????????????????????##""" ##????#" "#? | | ?????????????????????##"""" ##?????#!!""!"#? | | ??????????????????????### #??????########? | | ????????????????????????##### ##??????????????? | | ????????????????????????????## #???????????????? | | ?????????????????????????????# #???????????????? | | ?????????????????????????????# #???????????????? | | ?????????????????????????????? #???????????????? | | ?????????????????????????????? #???????????????? | | ?????????????????????????????? #???????????????? | | ?????????????????????????????? #???????????????? | | ?????????????????????????????????????????????????? | | ?????????????????????????????????????????????????? | | ?????????????????????????????????????????????????? | | ?????????????????????????????????????????????????? | | ?????????????????????????????????????????????????? | | ?????????????????????????????????????????????????? | | ?????????????????????????????????????????????????? | | ?????????????????????????????????????????????????? | | ?????????????????????????????????????????????????? | | ?????????????????????????????????????????????????? | +----------------------------------------------------+ Best States ------------- Heat Dissipation 42 Energy Generation 10 Energy Capacity 250 Matter Stores 300 Matter Capacity 300 Sight Range 16 Robot Scan Range 14 Terrain Scan Range 16 Terrain Scan Density 10 Armor Coverage 225 Evasion (%) 56 Recoil Reduction 3 Item Schematics ----------------- None Robot Schematics ------------------ None Fabricated ------------ Nothing Alien Tech Used ----------------- None Achievements -------------- None Challenges ------------ None Game ------ Seed PulseWaveRay Manual? 0 Play Time 00:17:09 Cumulative 168.3 hours Start 2024.05.11 @ 22:45:33 End 2024.05.11 @ 23:07:36 Sessions 1 Manual Loads 0 Difficulty Rogue Special Mode None Game No. 164 Rogue 159 Adventurer 5 Explorer 0 Win Type - Total 3 Types 2/0/0/1/0/0/0/0/0 Lore% 53 Gallery% 72 Achievement% 55 Wizard Run 0 Options --------- Layout 1 ASCII 0 Keyboard 0 Movement Mouse Keybinds 0 Fullscreen 1 Font 24/Terminus Map View 50x35 Zoom Use 0% Tactical HUD 1 Map Filters NONE Filters NONE Steam 1 RUN: b4f3d43d-aea2-4739-847a-a2ccd90fc707